bitfinex-derivatives/quotes_BNBF0:USTF0_20250603
["timestamp","ask_amount","ask_price","bid_price","bid_amount"]
[1748934974868,1.233,665.9,665.79,0.30039501]
[1748935008390,0.91763078,665.89,665.79,0.30039501]
[1748935008591,1.233,665.9,665.79,0.30039501]
[1748935008792,0.91762821,665.89,665.79,0.30039501]
[1748935008993,1.233,665.9,665.79,0.30039501]
[1748935009695,0.91762949,665.89,665.79,0.30039501]
[1748935009891,1.233,665.9,665.79,0.30039501]
[1748935010693,0.91763304,665.89,665.79,0.30039501]
[1748935010893,1.233,665.9,665.79,0.30039501]
[1748935011490,0.91763166,665.89,665.79,0.30039501]
[1748935011694,1.233,665.9,665.79,0.30039501]
[1748935012193,0.91765452,665.89,665.79,0.30039501]
[1748935012390,1.233,665.9,665.79,0.30039501]
[1748935013396,0.91765018,665.89,665.79,0.30039501]
[1748935013593,1.233,665.9,665.79,0.30039501]
[1748935013795,0.91764996,665.89,665.79,0.30039501]
[1748935013999,0.91764996,665.88,665.79,0.30039501]
[1748935014299,1.233,665.9,665.79,0.30039501]
[1748935015001,0.91765203,665.89,665.79,0.30039501]
[1748935015602,0.91765202,665.88,665.79,0.30039501]
[1748935015798,0.91765203,665.89,665.79,0.30039501]
[1748935016703,0.91765209,665.88,665.79,0.30039501]
[1748935016902,0.91765203,665.89,665.79,0.30039501]
[1748935019105,0.91736969,665.88,665.79,0.30039501]
[1748935019301,0.91736969,665.87,665.79,0.30039501]
[1748935019501,0.91765203,665.89,665.79,0.30039501]
[1748935019701,0.9173733,665.88,665.79,0.30039501]
[1748935019906,0.91765203,665.89,665.79,0.30039501]
[1748935020500,0.91737193,665.88,665.79,0.30039501]
[1748935020703,0.91765203,665.89,665.79,0.30039501]
[1748935021100,0.91737156,665.88,665.79,0.30039501]
[1748935021304,0.91765203,665.89,665.79,0.30039501]
[1748935116689,0.91685181,665.88,665.79,0.30039501]
[1748935116893,0.91765203,665.89,665.79,0.30039501]
[1748935117292,0.91685721,665.88,665.79,0.30039501]
[1748935117491,0.91685528,665.87,665.79,0.30039501]
[1748935117688,0.91765203,665.89,665.79,0.30039501]
[1748935118895,0.91685398,665.88,665.79,0.30039501]
[1748935119095,0.91685581,665.87,665.79,0.30039501]
[1748935119297,0.91765203,665.89,665.79,0.30039501]
[1748935120997,0.91685315,665.88,665.79,0.30039501]
[1748935121198,0.91765203,665.89,665.79,0.30039501]
[1748935122800,0.91695811,665.88,665.79,0.30039501]
[1748935123099,0.91765203,665.89,665.79,0.30039501]
[1748935123696,0.9169462,665.88,665.79,0.30039501]
[1748935123900,0.91765203,665.89,665.79,0.30039501]
[1748935124100,0.91694508,665.88,665.79,0.30039501]
[1748935124301,0.91765203,665.89,665.79,0.30039501]
[1748935124302,0.91694508,665.87,665.79,0.30039501]
[1748935124500,0.91765203,665.89,665.79,0.30039501]
[1748935124699,0.91694646,665.88,665.79,0.30039501]
[1748935124897,0.91765203,665.89,665.79,0.30039501]
[1748935125802,0.91694497,665.88,665.79,0.30039501]
[1748935126101,0.91765203,665.89,665.79,0.30039501]
[1748935127506,0.91694277,665.88,665.79,0.30039501]
[1748935127800,0.91765203,665.89,665.79,0.30039501]
[1748935128201,0.91694415,665.88,665.79,0.30039501]
[1748935128401,0.91765203,665.89,665.79,0.30039501]
[1748935134005,0.91490904,665.88,665.79,0.30039501]
[1748935134203,0.91765203,665.89,665.79,0.30039501]
[1748935134403,0.91490904,665.88,665.79,0.30039501]
[1748935134608,0.91765203,665.89,665.79,0.30039501]
[1748935136508,0.91490912,665.88,665.79,0.30039501]
[1748935136809,0.91765203,665.89,665.79,0.30039501]
[1748935137204,0.91490739,665.88,665.79,0.30039501]
[1748935137409,0.91765203,665.89,665.79,0.30039501]
[1748935137613,0.91491055,665.88,665.79,0.30039501]
[1748935137909,0.91765203,665.89,665.79,0.30039501]
[1748935138504,0.91491059,665.88,665.79,0.30039501]
[1748935138805,0.91765203,665.89,665.79,0.30039501]
[1748935139009,0.91490921,665.88,665.79,0.30039501]
[1748935139208,0.91765203,665.89,665.79,0.30039501]
[1748935139805,0.91491212,665.88,665.79,0.30039501]
[1748935140110,0.91765203,665.89,665.79,0.30039501]
[1748935144907,1.233,665.9,665.79,0.30039501]
[1748935145908,0.91500179,665.89,665.79,0.30039501]
[1748935146213,1.233,665.9,665.79,0.30039501]
[1748935260825,1.12086453,665.83,665.79,0.30039501]
[1748935261023,1.12086453,665.81,665.79,0.30039501]
[1748935261427,1.233,665.9,665.79,0.30039501]
[1748935261428,1.12091275,665.8,665.79,0.30039501]
[1748935261625,1.49264453,665.89,665.79,0.30039501]
[1748935261828,1.49264453,665.86,665.79,0.30039501]
[1748935262025,0.90963392,665.85,665.79,0.30039501]
[1748935262225,0.9096435,665.84,665.79,0.30039501]
[1748935262429,1.49264453,665.86,665.79,0.30039501]
[1748935263131,1.49264453,665.84,665.79,0.30039501]
[1748935263631,0.90966156,665.83,665.79,0.30039501]
[1748935263832,1.49264453,665.86,665.79,0.30039501]
[1748935264432,1.49264453,665.87,665.79,0.30039501]
[1748935264932,0.90609076,665.86,665.79,0.30039501]
[1748935265135,0.90608667,665.85,665.79,0.30039501]
[1748935265432,1.49264453,665.86,665.79,0.30039501]
[1748935265633,2.40227848,665.88,665.79,0.30039501]
[1748935265833,0.90963395,665.88,665.79,0.30039501]
[1748935266233,0.90601866,665.87,665.79,0.30039501]
[1748935266934,1.11826283,665.84,665.79,0.30039501]
[1748935267134,1.11826283,665.85,665.79,0.30039501]
[1748935267734,1.11826283,665.86,665.79,0.30039501]
[1748935268127,0.90601866,665.87,665.79,0.30039501]
[1748935268332,0.90522155,665.86,665.79,0.30039501]
[1748935268529,2.02379575,665.87,665.79,0.30039501]
[1748935269237,1.11777709,665.85,665.79,0.30039501]
[1748935269430,0.90601866,665.87,665.79,0.30039501]
[1748935269431,1.11777709,665.8,665.79,0.30039501]
[1748935269634,0.90601866,665.87,665.79,0.30039501]
[1748935269830,1.11740246,665.8,665.79,0.30039501]
[1748935270027,1.11740246,665.8,665.08,0.26134563]
[1748935270028,0.90601866,665.87,665.08,0.26134563]
[1748935270234,0.90601866,665.87,665.09,0.30071118]
[1748935270235,1.1174013,665.78,665.09,0.30071118]
[1748935270731,1.1174013,665.79,665.09,0.30071118]
[1748935270933,0.90569346,665.78,665.09,0.30071118]
[1748935271134,0.90569444,665.77,665.09,0.30071118]
[1748935271336,0.90571673,665.76,665.09,0.30071118]
[1748935271637,0.90569444,665.77,665.09,0.30071118]
[1748935272136,0.90572811,665.76,665.09,0.30071118]
[1748935272337,0.90572811,665.75,665.09,0.30071118]
[1748935272635,0.90569444,665.77,665.09,0.30071118]
[1748935272836,2.349,665.74,665.09,0.30071118]
[1748935273033,0.90570127,665.73,665.09,0.30071118]
[1748935273234,2.349,665.74,665.09,0.30071118]
[1748935273235,0.90570126,665.72,665.09,0.30071118]
[1748935273436,2.09670138,665.71,665.09,0.30071118]
[1748935273735,1.191,665.71,665.09,0.30071118]
[1748935273938,1.266,665.7,665.09,0.30071118]
[1748935274340,1.172,665.69,665.09,0.30071118]
[1748935274532,2.067,665.69,665.09,0.30071118]
[1748935285438,0.91195246,665.68,665.09,0.30071118]
[1748935285643,0.91195246,665.67,665.09,0.30071118]
[1748935285840,2.067,665.69,665.09,0.30071118]
[1748935286544,0.91195338,665.68,665.09,0.30071118]
[1748935286747,2.067,665.69,665.09,0.30071118]
[1748935287344,0.91195338,665.68,665.09,0.30071118]
[1748935287541,0.91195338,665.67,665.09,0.30071118]
[1748935287741,2.067,665.69,665.09,0.30071118]
[1748935288142,0.91193242,665.68,665.09,0.30071118]
[1748935288444,2.067,665.69,665.09,0.30071118]
[1748935289244,0.91193639,665.68,665.09,0.30071118]
[1748935289544,0.9119343,665.67,665.09,0.30071118]
[1748935289745,0.91193489,665.66,665.09,0.30071118]
[1748935289946,2.067,665.69,665.09,0.30071118]
[1748935290138,2.04293488,665.65,665.09,0.30071118]
[1748935290343,0.91192902,665.64,665.09,0.30071118]
[1748935290542,0.91192818,665.63,665.09,0.30071118]
[1748935290739,1.131,665.65,665.09,0.30071118]
[1748935290945,1.003,665.62,665.09,0.30071118]
[1748935292047,0.91191222,665.61,665.09,0.30071118]
[1748935292242,0.9119123,665.6,665.09,0.30071118]
[1748935292548,1.003,665.62,665.09,0.30071118]
[1748935292743,1.341,665.59,665.09,0.30071118]
[1748935294045,0.816,665.58,665.09,0.30071118]
[1748935298246,0.91271276,665.57,665.09,0.30071118]
[1748935298450,0.816,665.58,665.09,0.30071118]
[1748935299751,0.91272996,665.57,665.09,0.30071118]
[1748935299951,0.816,665.58,665.09,0.30071118]
[1748935300750,0.91142461,665.57,665.09,0.30071118]
[1748935301045,0.816,665.58,665.09,0.30071118]
[1748935301451,0.91142323,665.57,665.09,0.30071118]
[1748935301748,0.816,665.58,665.09,0.30071118]
[1748935304047,0.91347574,665.57,665.09,0.30071118]
[1748935304246,0.816,665.58,665.09,0.30071118]
[1748935305652,0.91347414,665.57,665.09,0.30071118]
[1748935305949,0.816,665.58,665.09,0.30071118]
[1748935308055,1.341,665.59,665.09,0.30071118]
[1748935312056,1.329,665.58,665.09,0.30071118]
[1748935312753,1.329,665.58,665.09,0.77751781]
[1748935312957,0.91394032,665.57,665.09,0.77751781]
[1748935313653,0.91394032,665.57,665.09,0.30071118]
[1748935313958,0.91392699,665.56,665.09,0.30071118]
[1748935314160,0.91394032,665.57,665.09,0.30071118]
[1748935314963,0.91392765,665.56,665.09,0.30071118]
[1748935315260,0.91394032,665.57,665.09,0.30071118]
[1748935316357,0.91401404,665.56,665.09,0.30071118]
[1748935316562,0.91394032,665.57,665.09,0.30071118]
[1748935316965,0.91288777,665.56,665.09,0.30071118]
[1748935317263,0.91394032,665.57,665.09,0.30071118]
[1748935318065,0.91285673,665.56,665.09,0.30071118]
[1748935318260,0.91394032,665.57,665.09,0.30071118]
[1748935319262,0.91285791,665.56,665.09,0.30071118]
[1748935319464,1.208,665.56,665.09,0.30071118]
[1748935319862,0.91198259,665.55,665.09,0.30071118]
[1748935320057,1.208,665.56,665.09,0.30071118]
[1748935320660,0.91198025,665.55,665.09,0.30071118]
[1748935320862,1.208,665.56,665.09,0.30071118]
[1748935321364,0.91197861,665.55,665.09,0.30071118]
[1748935321563,1.208,665.56,665.09,0.30071118]
[1748935321764,0.91198,665.54,665.09,0.30071118]
[1748935321960,1.208,665.56,665.09,0.30071118]
[1748935324062,0.91197955,665.55,665.09,0.30071118]
[1748935324268,1.208,665.56,665.09,0.30071118]
[1748935324470,0.91198265,665.54,665.09,0.30071118]
[1748935325566,0.91198403,665.53,665.09,0.30071118]
[1748935325766,0.91230427,665.52,665.09,0.30071118]
[1748935325964,0.91198265,665.54,665.09,0.30071118]
[1748935326368,1.12353846,665.53,665.09,0.30071118]
[1748935326967,0.91198265,665.54,665.09,0.30071118]
[1748935326968,1.12337157,665.52,665.09,0.30071118]
[1748935328371,1.12337157,665.5,665.09,0.30071118]
[1748935329365,1.12337157,665.49,665.09,0.30071118]
[1748935329569,1.12337157,665.5,665.09,0.30071118]
[1748935330565,0.91198265,665.54,665.09,0.30071118]
[1748935330770,1.12322802,665.51,665.09,0.30071118]
[1748935332674,0.91198265,665.54,665.09,0.30071118]
[1748935332675,1.12322802,665.5,665.09,0.30071118]
[1748935334373,0.91198265,665.54,665.09,0.30071118]
[1748935334574,1.12301639,665.5,665.09,0.30071118]
[1748935336379,1.21,665.49,665.09,0.30071118]
[1748935337576,0.871,665.48,665.09,0.30071118]
[1748935338977,1.048,665.47,665.09,0.30071118]
[1748935343480,0.93,665.46,665.09,0.30071118]
[1748935365596,0.93,665.45,665.09,0.30071118]
[1748935377204,1.114,665.44,665.09,0.30071118]
[1748935377404,2.057,665.44,665.09,0.30071118]
[1748935387009,2.057,665.44,665.09,1.42614844]
[1748935387411,2.057,665.44,665.14,1.12543726]
[1748935387613,2.057,665.44,665.15,0.30068405]
[1748935388315,2.057,665.44,665.16,1.12543726]
[1748935388516,2.057,665.44,665.17,0.30067501]
[1748935389715,1.129,665.43,665.17,0.30067501]
[1748935413826,2.057,665.44,665.17,0.30067501]
[1748935416729,0.842,665.43,665.17,0.30067501]
[1748935420338,0.842,665.43,665.18,0.47680663]
[1748935420532,0.842,665.43,665.19,0.30066597]
[1748935427746,1.029,665.45,665.19,0.30066597]
[1748935431848,1.152,665.44,665.19,0.30066597]
[1748935461865,3.53,665.47,665.19,0.30066597]
[1748935464566,0.932,665.46,665.19,0.30066597]
[1748935469765,0.932,665.46,665.2,1.12414508]
[1748935470070,0.932,665.46,665.21,0.30065693]
[1748935483180,0.932,665.46,665.21,1.42439802]
[1748935483779,0.932,665.46,665.22,1.12374109]
[1748935483978,0.932,665.46,665.23,0.30064789]
[1748935484678,1.204,665.47,665.23,0.30064789]
[1748935487586,0.879,665.46,665.23,0.30064789]
[1748935499692,2.18,665.49,665.23,0.30064789]
[1748935502595,1.023,665.48,665.23,0.30064789]
[1748935505695,0.91568787,665.47,665.23,0.30064789]
[1748935505890,1.023,665.48,665.23,0.30064789]
[1748935506095,0.91568265,665.47,665.23,0.30064789]
[1748935506292,1.023,665.48,665.23,0.30064789]
[1748935506688,0.91562298,665.47,665.23,0.30064789]
[1748935506892,1.023,665.48,665.23,0.30064789]
[1748935507097,0.91559184,665.47,665.23,0.30064789]
[1748935507396,1.023,665.48,665.23,0.30064789]
[1748935508596,0.91539361,665.47,665.23,0.30064789]
[1748935508898,1.023,665.48,665.23,0.30064789]
[1748935509696,0.91533467,665.47,665.23,0.30064789]
[1748935509896,1.023,665.48,665.23,0.30064789]
[1748935511498,2.14530439,665.48,665.23,0.30064789]
[1748935512597,1.12230439,665.46,665.23,0.30064789]
[1748935512794,1.12230439,665.47,665.23,0.30064789]
[1748935513798,1.12230439,665.4,665.23,0.30064789]
[1748935514199,1.12230439,665.41,665.23,0.30064789]
[1748935514498,1.12119316,665.41,665.23,0.30064789]
[1748935514797,1.12119316,665.42,665.23,0.30064789]
[1748935515802,1.12119316,665.43,665.23,0.30064789]
[1748935516699,1.12119316,665.44,665.23,0.30064789]
[1748935517904,1.023,665.48,665.23,0.30064789]
[1748935517905,1.12119316,665.45,665.23,0.30064789]
[1748935518404,1.11961947,665.45,665.23,0.30064789]
[1748935518798,1.11961947,665.46,665.23,0.30064789]
[1748935519403,1.11961947,665.47,665.23,0.30064789]
[1748935520201,1.11961947,665.48,665.23,0.30064789]
[1748935521204,0.953,665.47,665.23,0.30064789]
[1748935544323,1.1161613,665.45,665.23,0.30064789]
[1748935544522,2.02419138,665.44,665.23,0.30064789]
[1748935544723,1.1161613,665.44,665.23,0.30064789]
[1748935545122,0.90806785,665.43,665.23,0.30064789]
[1748935545323,1.11637227,665.43,665.23,0.30064789]
[1748935545528,2.03203963,665.42,665.23,0.30064789]
[1748935545727,1.11637227,665.42,665.23,0.30064789]
[1748935546328,0.91567684,665.41,665.23,0.30064789]
[1748935546528,1.11637227,665.42,665.23,0.30064789]
[1748935546724,1.038,665.4,665.23,0.30064789]
[1748935547030,2.15437227,665.4,665.23,0.30064789]
[1748935547229,1.11637227,665.39,665.23,0.30064789]
[1748935548326,1.11637227,665.38,665.23,0.30064789]
[1748935548730,0.91539649,665.37,665.23,0.30064789]
[1748935549034,1.11666301,665.38,665.23,0.30064789]
[1748935549228,1.11666301,665.37,665.23,0.30064789]
[1748935550330,0.91539746,665.36,665.23,0.30064789]
[1748935550523,1.11666301,665.36,665.23,0.30064789]
[1748935551129,1.11666301,665.35,665.23,0.30064789]
[1748935551831,1.11666301,665.37,665.23,0.30064789]
[1748935552234,1.11666301,665.35,665.23,0.30064789]
[1748935552433,0.91576246,665.34,665.23,0.30064789]
[1748935552627,1.038,665.4,665.23,0.30064789]
[1748935552829,1.11756643,665.36,665.23,0.30064789]
[1748935553133,1.11756643,665.34,665.23,0.30064789]
[1748935553531,0.91575245,665.33,665.23,0.30064789]
[1748935553732,1.11756643,665.35,665.23,0.30064789]
[1748935554034,0.91575069,665.34,665.23,0.30064789]
[1748935554235,1.11756643,665.33,665.23,0.30064789]
[1748935555336,1.11756643,665.32,665.23,0.30064789]
[1748935555532,1.11756643,665.31,665.23,0.30064789]
[1748935555733,1.11756643,665.32,665.23,0.30064789]
[1748935556035,1.11756643,665.31,665.23,0.30064789]
[1748935556230,1.11756643,665.3,665.23,0.30064789]
[1748935556632,1.11926139,665.3,665.23,0.30064789]
[1748935557238,1.11926139,665.27,665.23,0.30064789]
[1748935558136,1.11926139,665.25,665.23,0.30064789]
[1748935558535,1.11926139,665.26,665.23,0.30064789]
[1748935559135,1.11926139,665.24,665.23,0.30064789]
[1748935559335,1.11926139,665.26,665.23,0.30064789]
[1748935560441,1.12074811,665.26,665.23,0.30064789]
[1748935561638,1.12074811,665.25,665.23,0.30064789]
[1748935562242,1.164,665.34,665.23,0.30064789]
[1748935562243,1.12074811,665.26,665.23,0.30064789]
[1748935564047,1.12074811,665.27,665.23,0.30064789]
[1748935566544,1.12074811,665.28,665.23,0.30064789]
[1748935566746,1.12063753,665.26,665.23,0.30064789]
[1748935566947,1.164,665.34,665.23,0.30064789]
[1748935566948,1.12063753,665.29,665.23,0.30064789]
[1748935567147,1.12063753,665.28,665.23,0.30064789]
[1748935568146,1.12063753,665.27,665.23,0.30064789]
[1748935568848,1.164,665.34,665.23,0.30064789]
[1748935568849,1.12063753,665.28,665.23,0.30064789]
[1748935569147,1.12063753,665.27,665.23,0.30064789]
[1748935569349,1.12063753,665.28,665.23,0.30064789]
[1748935569654,1.12063753,665.29,665.23,0.30064789]
[1748935569852,1.12063753,665.3,665.23,0.30064789]
[1748935570049,1.12063753,665.31,665.23,0.30064789]
[1748935570348,1.12063753,665.33,665.23,0.30064789]
[1748935570548,2.28482934,665.34,665.23,0.30064789]
[1748935570949,1.164,665.34,665.23,0.30064789]
[1748935571751,0.9154453,665.33,665.23,0.30064789]
[1748935571949,1.164,665.34,665.23,0.30064789]
[1748935572857,0.91529348,665.33,665.23,0.30064789]
[1748935573057,1.164,665.34,665.23,0.30064789]
[1748935574159,0.91532369,665.33,665.23,0.30064789]
[1748935574357,1.164,665.34,665.23,0.30064789]
[1748935575154,0.91541161,665.33,665.23,0.30064789]
[1748935575360,1.164,665.34,665.23,0.30064789]
[1748935575862,0.9154199,665.33,665.23,0.30064789]
[1748935576159,1.164,665.34,665.23,0.30064789]
[1748935576355,0.91542481,665.33,665.23,0.30064789]
[1748935576560,1.164,665.34,665.23,0.30064789]
[1748935576759,0.91542337,665.33,665.23,0.30064789]
[1748935577060,1.164,665.34,665.23,0.30064789]
[1748935577257,0.91544099,665.33,665.23,0.30064789]
[1748935577457,1.164,665.34,665.23,0.30064789]
[1748935578860,2.28425044,665.34,665.23,0.30064789]
[1748935579062,0.91513903,665.33,665.23,0.30064789]
[1748935579261,2.28425044,665.34,665.23,0.30064789]
[1748935579962,0.91514311,665.33,665.23,0.30064789]
[1748935580155,2.28425044,665.34,665.23,0.30064789]
[1748935580556,0.91514592,665.33,665.23,0.30064789]
[1748935580862,1.12025044,665.33,665.23,0.30064789]
[1748935581556,1.12025044,665.31,665.23,0.30064789]
[1748935581961,1.164,665.34,665.23,0.30064789]
[1748935582160,1.12051457,665.3,665.23,0.30064789]
[1748935583362,1.12051457,665.33,665.23,0.30064789]
[1748935584057,0.91513996,665.32,665.23,0.30064789]
[1748935584262,0.91514264,665.31,665.23,0.30064789]
[1748935584457,2.28451457,665.34,665.23,0.30064789]
[1748935585756,2.28468585,665.34,665.23,0.30064789]
[1748935585954,0.91513721,665.33,665.23,0.30064789]
[1748935586157,2.28468585,665.34,665.23,0.30064789]
[1748935586362,2.03582189,665.33,665.23,0.30064789]
[1748935586564,0.91513604,665.32,665.23,0.30064789]
[1748935586758,2.03582189,665.33,665.23,0.30064789]
[1748935587661,0.9151445,665.32,665.23,0.30064789]
[1748935587859,0.91513803,665.31,665.23,0.30064789]
[1748935588062,0.91513803,665.3,665.23,0.30064789]
[1748935588259,2.03582189,665.33,665.23,0.30064789]
[1748935588460,0.91513737,665.32,665.23,0.30064789]
[1748935588660,0.91513232,665.31,665.23,0.30064789]
[1748935588858,0.91513997,665.3,665.23,0.30064789]
[1748935589061,2.03582189,665.33,665.23,0.30064789]
[1748935589265,1.12068585,665.32,665.23,0.30064789]
[1748935589561,0.91513604,665.33,665.23,0.30064789]
[1748935589765,1.12089295,665.32,665.23,0.30064789]
[1748935590566,0.91514374,665.31,665.23,0.30064789]
[1748935590766,1.12089295,665.32,665.23,0.30064789]
[1748935591264,0.91514375,665.31,665.23,0.30064789]
[1748935591467,1.12089295,665.31,665.23,0.30064789]
[1748935593265,1.12089295,665.29,665.23,0.30064789]
[1748935593462,1.12115953,665.29,665.23,0.30064789]
[1748935593960,0.91579898,665.28,665.23,0.30064789]
[1748935594164,0.91580127,665.27,665.23,0.30064789]
[1748935594366,1.12115953,665.26,665.23,0.30064789]
[1748935594669,1.12115953,665.25,665.23,0.30064789]
[1748935595063,0.91581233,665.24,665.23,0.30064789]
[1748935595266,1.12115953,665.25,665.23,0.30064789]
[1748935595564,0.91580574,665.24,665.23,0.30064789]
[1748935595968,0.9157996,665.24,665.23,0.30064789]
[1748935596262,1.12115953,665.25,665.23,0.30064789]
[1748935596863,0.91579836,665.24,665.23,0.30064789]
[1748935597062,1.12115953,665.25,665.23,0.30064789]
[1748935597267,0.91513604,665.33,665.23,0.30064789]
[1748935597461,1.12144222,665.25,665.23,0.30064789]
[1748935598471,1.12144222,665.31,665.23,0.30064789]
[1748935598670,0.9159285,665.3,665.23,0.30064789]
[1748935598968,1.12144222,665.31,665.23,0.30064789]
[1748935599369,0.91513604,665.33,665.23,0.30064789]
[1748935599564,2.03769971,665.32,665.23,0.30064789]
[1748935599767,1.12174466,665.32,665.23,0.30064789]
[1748935599968,1.12174466,665.31,665.23,0.30064789]
[1748935600164,1.12174466,665.32,665.23,0.30064789]
[1748935600369,2.03774258,665.31,665.23,0.30064789]
[1748935600668,1.12174466,665.31,665.23,0.30064789]
[1748935601066,0.91513604,665.33,665.23,0.30064789]
[1748935601271,1.12195692,665.31,665.23,0.30064789]
[1748935601872,0.91513604,665.33,665.23,0.30064789]
[1748935601873,1.12195692,665.3,665.23,0.30064789]
[1748935604669,0.91488119,665.29,665.23,0.30064789]
[1748935605070,0.91487952,665.28,665.23,0.30064789]
[1748935605273,0.91488119,665.29,665.23,0.30064789]
[1748935606073,2.03716298,665.29,665.23,0.30064789]
[1748935606674,0.91350265,665.28,665.23,0.30064789]
[1748935606875,2.03716298,665.29,665.23,0.30064789]
[1748935607979,0.91374578,665.28,665.23,0.30064789]
[1748935608279,1.12228179,665.26,665.23,0.30064789]
[1748935608680,0.91488119,665.29,665.23,0.30064789]
[1748935608884,1.12233222,665.26,665.23,0.30064789]
[1748935609279,1.12233222,665.25,665.23,0.30064789]
[1748935609678,1.12233222,665.26,665.23,0.30064789]
[1748935609876,1.12233222,665.28,665.23,0.30064789]
[1748935610075,2.03721341,665.29,665.23,0.30064789]
[1748935610977,1.12233222,665.27,665.23,0.30064789]
[1748935611173,0.91488119,665.29,665.23,0.30064789]
[1748935611174,1.12233222,665.28,665.23,0.30064789]
[1748935612682,1.12261958,665.28,665.23,0.30064789]
[1748935614378,2.03750077,665.29,665.23,0.30064789]
[1748935614783,1.12261958,665.28,665.23,0.30064789]
[1748935615284,0.91488119,665.29,665.23,0.30064789]
[1748935616285,0.91574776,665.28,665.23,0.30064789]
[1748935745704,1.164,665.34,665.23,0.30064789]
[1748935797234,0.91490909,665.33,665.23,0.30064789]
[1748935797429,1.164,665.34,665.23,0.30064789]
[1748935797835,0.91490459,665.33,665.23,0.30064789]
[1748935798132,1.164,665.34,665.23,0.30064789]
[1748935799435,0.91486492,665.33,665.23,0.30064789]
[1748935799741,1.164,665.34,665.23,0.30064789]
[1748935800638,0.91489886,665.33,665.23,0.30064789]
[1748935800833,1.164,665.34,665.23,0.30064789]
[1748935803237,0.91505416,665.33,665.23,0.30064789]
[1748935803432,1.164,665.34,665.23,0.30064789]
[1748935803833,0.91512326,665.33,665.23,0.30064789]
[1748935804037,1.164,665.34,665.23,0.30064789]
[1748935805044,0.91510171,665.33,665.23,0.30064789]
[1748935805242,1.164,665.34,665.23,0.30064789]
[1748935806141,0.91548218,665.33,665.23,0.30064789]
[1748935806340,1.164,665.34,665.23,0.30064789]
[1748935807738,0.91545989,665.33,665.23,0.30064789]
[1748935807935,1.164,665.34,665.23,0.30064789]
[1748935808337,0.91546102,665.33,665.23,0.30064789]
[1748935808645,1.164,665.34,665.23,0.30064789]
[1748935808841,0.91541264,665.33,665.23,0.30064789]
[1748935809043,1.164,665.34,665.23,0.30064789]
[1748935809839,0.91540352,665.33,665.23,0.30064789]
[1748935810044,1.164,665.34,665.23,0.30064789]
[1748935810442,0.91525879,665.33,665.23,0.30064789]
[1748935810644,1.164,665.34,665.23,0.30064789]
[1748935811137,0.91510853,665.33,665.23,0.30064789]
[1748935811338,0.91510588,665.32,665.23,0.30064789]
[1748935811540,1.164,665.34,665.23,0.30064789]
[1748935812846,0.91505663,665.33,665.23,0.30064789]
[1748935813346,0.91505332,665.32,665.23,0.30064789]
[1748935813541,0.91505663,665.33,665.23,0.30064789]
[1748935814742,0.91500955,665.32,665.23,0.30064789]
[1748935814947,0.91505663,665.33,665.23,0.30064789]
[1748935815547,0.91500985,665.32,665.23,0.30064789]
[1748935815748,0.91505663,665.33,665.23,0.30064789]
[1748935816044,0.91500305,665.32,665.23,0.30064789]
[1748935816243,0.91505663,665.33,665.23,0.30064789]
[1748935817248,0.91500119,665.32,665.23,0.30064789]
[1748935817443,0.91505663,665.33,665.23,0.30064789]
[1748935817748,0.91500549,665.32,665.23,0.30064789]
[1748935817949,0.91500549,665.31,665.23,0.30064789]
[1748935818149,0.91500077,665.3,665.23,0.30064789]
[1748935818344,0.91505663,665.33,665.23,0.30064789]
[1748935820950,0.91495138,665.32,665.23,0.30064789]
[1748935821144,0.91505663,665.33,665.23,0.30064789]
[1748935821450,0.9149435,665.31,665.23,0.30064789]
[1748935821944,0.91505663,665.33,665.23,0.30064789]
[1748935826346,0.91532587,665.32,665.23,0.30064789]
[1748935826550,0.91505663,665.33,665.23,0.30064789]
[1748935826744,0.91532598,665.32,665.23,0.30064789]
[1748935826945,0.91505663,665.33,665.23,0.30064789]
[1748935827448,0.91532577,665.32,665.23,0.30064789]
[1748935827649,0.91532577,665.31,665.23,0.30064789]
[1748935827846,0.91532883,665.3,665.23,0.30064789]
[1748935828051,0.91505663,665.33,665.23,0.30064789]
[1748935829555,0.91536635,665.32,665.23,0.30064789]
[1748935829853,0.91505663,665.33,665.23,0.30064789]
[1748935830245,0.91537105,665.32,665.23,0.30064789]
[1748935830448,0.91505663,665.33,665.23,0.30064789]
[1748935830449,0.91537105,665.31,665.23,0.30064789]
[1748935830652,0.91505663,665.33,665.23,0.30064789]
[1748935831550,0.91538548,665.32,665.23,0.30064789]
[1748935831747,0.91505663,665.33,665.23,0.30064789]
[1748935831952,0.91546704,665.32,665.23,0.30064789]
[1748935832149,0.91505663,665.33,665.23,0.30064789]
[1748935832648,0.91659734,665.32,665.23,0.30064789]
[1748935832851,0.91505663,665.33,665.23,0.30064789]
[1748935833250,0.91660009,665.32,665.23,0.30064789]
[1748935833450,0.91660587,665.31,665.23,0.30064789]
[1748935833649,0.91505663,665.33,665.23,0.30064789]